bitfinex-derivatives/quotes_BTCF0:USTF0_20251118
["timestamp","ask_amount","ask_price","bid_price","bid_amount"]
[1763447747900,0.03866771,89861.0,89860.0,0.40826803]
[1763447748092,0.02177,89861.0,89860.0,0.40826803]
[1763447748298,0.04365,89861.0,89860.0,0.40826803]
[1763447748498,0.04381693,89869.0,89868.0,0.0228]
[1763447748800,0.07013619,89869.0,89868.0,0.0228]
[1763447749007,0.02177,89861.0,89860.0,0.40507]
[1763447749204,0.00016693,89869.0,89868.0,0.04427]
[1763447749800,0.00016693,89869.0,89868.0,0.40507]
[1763447750295,0.02193693,89869.0,89868.0,0.40507]
[1763447750604,0.00016693,89869.0,89868.0,0.40507]
[1763447751899,0.04381693,89869.0,89868.0,0.40507]
[1763447752408,0.00016693,89869.0,89868.0,0.40507]
[1763447752604,0.00016693,89869.0,89868.0,0.67479]
[1763447754604,0.04368655,89869.0,89868.0,0.67479]
[1763447754908,3.655e-05,89869.0,89868.0,0.67479]
[1763447756498,0.02180655,89869.0,89868.0,0.67479]
[1763447756701,0.04368655,89869.0,89868.0,0.67479]
[1763447757109,0.04368655,89869.0,89868.0,0.31399]
[1763447757311,0.02180655,89869.0,89868.0,0.31399]
[1763447757906,0.04375655,89869.0,89868.0,0.31399]
[1763447760108,0.40455655,89869.0,89868.0,0.31399]
[1763447760813,3.655e-05,89869.0,89868.0,0.31399]
[1763447761003,0.04353,89887.0,89886.0,0.04615]
[1763447761207,0.3608,89897.0,89896.0,0.04615]
[1763447761208,0.40433,89897.0,89896.0,0.04615]
[1763447761409,0.3868119,89897.0,89896.0,0.04615]
[1763447761603,0.38238,89897.0,89896.0,0.04615]
[1763447761808,0.40433,89897.0,89896.0,0.04615]
[1763447762308,0.40433,89897.0,89888.0,0.00016693]
[1763447762309,0.04353,89889.0,89888.0,0.00016693]
[1763447762709,0.40374348,89889.0,89888.0,0.00016693]
[1763447762912,0.04353,89872.0,89871.0,0.3608]
[1763447763418,0.04353,89871.0,89870.0,0.00219803]
[1763447764512,0.04353,89871.0,89870.0,0.04834803]
[1763447764703,0.04353,89871.0,89870.0,0.06101803]
[1763447764915,0.04353,89871.0,89870.0,0.00219803]
[1763447765219,0.04353,89871.0,89870.0,0.02543803]
[1763447765415,0.04353,89871.0,89870.0,0.04834803]
[1763447765615,0.04453,89871.0,89870.0,0.04834803]
[1763447766013,0.04353,89871.0,89870.0,0.04834803]
[1763447767619,0.04353,89871.0,89870.0,0.00219803]
[1763447769111,0.04353,89871.0,89870.0,0.02543803]
[1763447769312,0.04353,89871.0,89870.0,0.04834803]
[1763447770725,0.37757843,89878.0,89877.0,0.04615]
[1763447771120,0.00016693,89879.0,89868.0,0.21097115]
[1763447771121,0.00016693,89879.0,89878.0,0.04615]
[1763447772013,0.04369693,89879.0,89878.0,0.04615]
[1763447772719,0.04469693,89879.0,89878.0,0.04615]
[1763447772917,0.04569693,89879.0,89878.0,0.04615]
[1763447773118,0.00216693,89879.0,89878.0,0.04615]
[1763447774421,0.03985427,89909.0,89901.0,0.04615]
[1763447774720,0.04353,89901.0,89900.0,0.04834803]
[1763447775021,0.04353,89901.0,89900.0,0.00219803]
[1763447775222,0.04353,89901.0,89900.0,0.02543803]
[1763447775429,0.04353,89901.0,89900.0,0.04834803]
[1763447775921,0.04453,89901.0,89900.0,0.04834803]
[1763447776521,0.04453,89901.0,89900.0,0.02543803]
[1763447776924,0.04453,89901.0,89900.0,0.04834803]
[1763447777316,0.04553,89901.0,89900.0,0.04834803]
[1763447777522,0.002,89901.0,89900.0,0.06101803]
[1763447777821,0.22474115,89930.0,89910.0,0.01267]
[1763447777822,0.40433,89928.0,89910.0,0.01267]
[1763447778023,0.04353,89921.0,89920.0,0.04834803]
[1763447778219,0.04353,89921.0,89920.0,0.00219803]
[1763447779223,0.40772,89928.0,89927.0,0.02127]
[1763447779423,0.40772,89928.0,89927.0,0.04251]
[1763447779632,0.04392,89921.0,89920.0,0.04251]
[1763447779829,0.04392,89921.0,89920.0,0.05831803]
[1763447780030,0.04392,89921.0,89920.0,0.04470803]
[1763447780421,0.04492,89921.0,89920.0,0.04470803]
[1763447780732,0.02421,89921.0,89920.0,0.05831803]
[1763447781325,0.02321,89921.0,89920.0,0.05831803]
[1763447781617,0.02421,89921.0,89920.0,0.05831803]
[1763447782122,0.04592,89921.0,89920.0,0.00219803]
[1763447782329,0.04392,89913.0,89912.0,0.04267683]
[1763447783737,0.04492,89913.0,89912.0,0.00016683]
[1763447788035,0.0462,89913.0,89912.0,0.02265]
[1763447788229,0.0452,89911.0,89910.0,0.00219803]
[1763447788633,0.0452,89901.0,89900.0,0.21097115]
[1763447788836,0.0452,89901.0,89900.0,0.02484803]
[1763447789030,0.0452,89901.0,89900.0,0.04646803]
[1763447790032,0.0452,89901.0,89900.0,0.06004803]
[1763447790238,0.3608,89905.0,89904.0,0.04427]
[1763447790239,0.38294,89905.0,89904.0,0.04427]
[1763447790534,0.406,89905.0,89904.0,0.04427]
[1763447790745,0.0452,89901.0,89900.0,0.00219803]
[1763447791741,0.406,89905.0,89904.0,0.04427]
[1763447791945,0.0452,89901.0,89900.0,0.02484803]
[1763447792343,0.0452,89901.0,89900.0,0.04646803]
[1763447792851,0.05349,89901.0,89900.0,0.00219803]
[1763447793038,0.05449,89901.0,89900.0,0.00219803]
[1763447793444,0.0462,89901.0,89900.0,0.04646803]
[1763447793846,0.05854,89901.0,89900.0,0.00219803]
[1763447794055,0.05754,89901.0,89900.0,0.00219803]
[1763447794350,0.0472,89901.0,89900.0,0.04646803]
[1763447794651,0.0472,89901.0,89900.0,0.06004803]
[1763447795343,0.002,89901.0,89900.0,0.06004803]
[1763447795752,0.3608,89905.0,89904.0,0.04427]
[1763447796444,0.00016683,89909.0,89908.0,0.04427]
[1763447796647,0.04536683,89909.0,89908.0,0.04427]
[1763447797653,0.00016683,89909.0,89908.0,0.04427]
[1763447797949,0.02330683,89909.0,89908.0,0.04427]
[1763447798551,0.38410683,89909.0,89908.0,0.04427]
[1763447798749,0.40716683,89909.0,89908.0,0.04427]
[1763447798946,0.40716683,89909.0,89900.0,0.01358]
[1763447798947,0.40816683,89909.0,89900.0,0.01358]
[1763447799152,0.41937,89901.0,89900.0,0.00219803]
[1763447799758,0.0452,89893.0,89892.0,0.00016683]
[1763447800055,0.406,89893.0,89892.0,0.00016683]
[1763447802048,0.0452,89891.0,89890.0,0.00219803]
[1763447802252,0.0723228,89891.0,89890.0,0.02484803]
[1763447802452,0.0723228,89891.0,89890.0,0.06004803]
[1763447802651,0.0492628,89891.0,89890.0,0.06004803]
[1763447802857,0.0723228,89891.0,89890.0,0.02484803]
[1763447803046,0.0723228,89891.0,89890.0,0.04646803]
[1763447803247,0.0733228,89891.0,89890.0,0.04646803]
[1763447803644,0.0743228,89891.0,89890.0,0.04646803]
[1763447804348,0.0462,89891.0,89890.0,0.06004803]
[1763447804543,0.07329929,89891.0,89890.0,0.04646803]
[1763447804950,0.07229929,89891.0,89890.0,0.04646803]
[1763447805851,0.07329929,89891.0,89890.0,0.04646803]
[1763447806253,0.0462,89891.0,89890.0,0.04646803]
[1763447807256,0.001,89891.0,89890.0,0.04646803]
[1763447808052,0.02314,89891.0,89890.0,0.04646803]
[1763447808248,0.0462,89891.0,89890.0,0.00219803]
[1763447808657,0.0462,89891.0,89890.0,0.02484803]
[1763447808845,0.0452,89891.0,89890.0,0.02484803]
[1763447809050,0.0452,89891.0,89890.0,0.00219803]
[1763447809554,0.0462,89891.0,89890.0,0.04646803]
[1763447810657,0.0452,89891.0,89890.0,0.04646803]
[1763447811160,0.0452,89891.0,89890.0,0.02484803]
[1763447811358,0.07269272,89891.0,89890.0,0.04646803]
[1763447811659,0.0452,89891.0,89890.0,0.04646803]
[1763447812254,0.0462,89891.0,89890.0,0.04646803]
[1763447813447,0.0462,89891.0,89890.0,0.00219803]
[1763447814360,0.07370738,89891.0,89890.0,0.00219803]
[1763447814759,0.07370738,89891.0,89890.0,0.02484803]
[1763447814952,0.07370738,89891.0,89890.0,0.04646803]
[1763447815458,0.07370738,89891.0,89890.0,0.00219803]
[1763447815848,0.0452,89883.0,89882.0,0.00016683]
[1763447816056,0.43350738,89883.0,89870.0,0.15000442]
[1763447816258,0.07270738,89882.0,89881.0,0.04427]
[1763447817064,0.04412,89873.0,89872.0,0.05763]
[1763447817549,0.3608,89874.0,89872.0,0.05763]
[1763447817746,0.40492,89874.0,89873.0,0.04405]
[1763447818970,0.40592,89874.0,89873.0,0.04405]
[1763447820059,0.001,89874.0,89873.0,0.04405]
[1763447820456,0.38363,89887.0,89886.0,0.04405]
[1763447820655,0.38363,89887.0,89880.0,0.01346]
[1763447820656,0.3608,89887.0,89880.0,0.04405]
[1763447820852,0.04412,89873.0,89872.0,0.3608]
[1763447821060,0.04412,89873.0,89872.0,0.41831]
[1763447821564,0.3608,89887.0,89886.0,0.04405]
[1763447821765,0.41107271,89887.0,89886.0,0.04405]
[1763447821950,0.40492,89887.0,89886.0,0.04405]
[1763447822863,0.40492,89887.0,89880.0,0.02132]
[1763447822864,0.04412,89881.0,89880.0,0.02132]
[1763447823062,0.04412,89881.0,89880.0,0.00219803]
[1763447823268,0.04412,89873.0,89872.0,0.40485]
[1763447823460,0.04412,89873.0,89872.0,0.02132]
[1763447823656,0.04412,89871.0,89870.0,0.00219803]
[1763447823966,0.40492,89878.0,89877.0,0.04405]
[1763447824172,0.04412,89878.0,89877.0,0.04405]
[1763447825069,0.40592,89887.0,89886.0,0.04405]
[1763447825268,0.43232851,89887.0,89886.0,0.04405]
[1763447825563,0.00016683,89890.0,89889.0,0.04405]
[1763447825762,0.02129,89884.0,89883.0,0.02132]
[1763447825960,0.04412,89881.0,89880.0,0.00219803]
[1763447826656,0.04412,89881.0,89880.0,0.04624803]
[1763447827464,0.04512,89881.0,89880.0,0.04624803]
[1763447828269,0.04512,89881.0,89880.0,0.00219803]
[1763447828868,0.04512,89881.0,89871.0,0.3608]
[1763447828869,0.04412,89872.0,89871.0,0.40485]
[1763447829063,0.04412,89872.0,89871.0,0.04405]
[1763447829263,0.40492,89879.0,89878.0,0.04405]
[1763447829568,0.43221111,89879.0,89878.0,0.04405]
[1763447830462,0.04412,89870.0,89869.0,0.33874992]
[1763447830767,0.04412,89870.0,89869.0,0.04405]
[1763447831472,0.04412,89866.0,89865.0,0.26956]
[1763447831867,0.04412,89866.0,89865.0,0.29088]
[1763447832265,0.04412,89866.0,89865.0,0.02132]
[1763447832460,0.3608,89870.0,89860.0,0.04624803]
[1763447832461,0.04412,89861.0,89860.0,0.04624803]
[1763447835158,0.02283,89861.0,89860.0,0.04624803]
[1763447835363,0.04412,89861.0,89860.0,0.04624803]
[1763447835870,0.02283,89861.0,89860.0,0.04624803]
[1763447836371,0.04428693,89869.0,89868.0,0.04405]
[1763447837776,0.07156279,89869.0,89868.0,0.04405]
[1763447838474,0.02283,89860.0,89859.0,0.33874992]
[1763447838664,0.04412,89860.0,89859.0,0.04405]
[1763447839370,0.07425007,89860.0,89859.0,0.04405]
[1763447840679,0.07725007,89860.0,89859.0,0.04405]
[1763447840969,0.04384,89858.0,89847.0,0.37426]
[1763447841174,0.07397007,89858.0,89850.0,0.00219803]
[1763447841776,0.07397007,89858.0,89846.0,0.00027826]
[1763447842078,0.04384,89847.0,89846.0,0.00027826]
[1763447842270,0.43477007,89847.0,89846.0,0.00027826]
[1763447843276,0.43477007,89847.0,89832.0,0.05526998]
[1763447843277,0.04384,89833.0,89832.0,0.05526998]
[1763447843580,0.07516484,89833.0,89832.0,0.04443]
[1763447843777,0.04384,89831.0,89830.0,0.00219803]
[1763447844073,0.04384,89831.0,89825.0,0.26944]
[1763447844074,0.05106,89820.0,89819.0,0.3608]
[1763447844382,0.05106,89820.0,89775.0,0.01359]
[1763447844383,0.04384,89811.0,89810.0,0.00219803]
[1763447844568,0.04384,89810.0,89809.0,0.38389]
[1763447844768,0.04384,89810.0,89809.0,0.3608]
[1763447844973,0.02254693,89819.0,89818.0,0.04443]
[1763447845182,0.04400693,89819.0,89818.0,0.04443]
[1763447845475,0.04384,89812.0,89811.0,0.04443]
[1763447845675,0.03129137,89812.0,89811.0,0.05302]
[1763447845980,0.04400693,89819.0,89818.0,0.04443]
[1763447846184,0.07526707,89819.0,89818.0,0.04443]
[1763447847071,0.07626707,89819.0,89818.0,0.04443]
[1763447847273,0.07626707,89819.0,89818.0,0.04362]
[1763447847472,0.04500693,89819.0,89818.0,0.04362]
[1763447848169,0.03900693,89819.0,89818.0,0.04362]
[1763447848685,0.04259,89810.0,89809.0,0.04362]
[1763447849166,0.001,89819.0,89800.0,0.30053864]
[1763447849167,0.04275702,89818.0,89817.0,0.04362]
[1763447849372,0.07382694,89818.0,89817.0,0.04362]
[1763447850581,0.07482694,89818.0,89817.0,0.04362]
[1763447851278,0.04259,89812.0,89811.0,0.04362]
[1763447851576,0.04259,89812.0,89811.0,0.05714]
[1763447851776,0.02114,89812.0,89811.0,0.05714]
[1763447852080,0.04375702,89818.0,89817.0,0.04362]
[1763447852384,0.07475757,89818.0,89817.0,0.04362]
[1763447852573,0.04259,89812.0,89811.0,0.04362]
[1763447852771,0.05619,89811.0,89810.0,0.00219803]
[1763447852970,0.05619,89811.0,89798.0,0.3608]
[1763447852971,0.04259,89807.0,89806.0,0.02280838]
[1763447853571,0.04259,89807.0,89806.0,0.04389838]
[1763447853773,0.36196702,89818.0,89810.0,0.02472803]
[1763447853973,0.04259,89811.0,89810.0,0.04581803]
[1763447855581,0.40355702,89818.0,89817.0,0.04362]
[1763447855773,0.43454458,89818.0,89817.0,0.04362]
[1763447855976,0.04259,89808.0,89807.0,0.40442]
[1763447856278,0.40355702,89818.0,89817.0,0.04362]
[1763447856476,0.03115457,89818.0,89817.0,0.04362]
[1763447856677,0.07374457,89818.0,89817.0,0.04362]
[1763447857075,0.07474457,89818.0,89817.0,0.04362]
[1763447857476,0.07474457,89818.0,89809.0,0.26952]
[1763447857477,0.04259,89810.0,89809.0,0.31314]
[1763447857879,0.04259,89810.0,89809.0,0.26952]
[1763447858083,0.04259,89810.0,89807.0,0.3608]
[1763447858381,0.04259,89807.0,89806.0,0.02280838]
[1763447858580,0.04259,89807.0,89806.0,0.04389838]
[1763447859083,0.04259,89816.0,89815.0,0.04362]
[1763447859271,0.08388001,89816.0,89810.0,0.00219803]
[1763447859475,0.04259,89811.0,89810.0,0.00219803]
[1763447859684,0.07355001,89811.0,89810.0,0.00219803]
[1763447859874,0.07355001,89811.0,89810.0,0.02472803]
[1763447860074,0.07355001,89811.0,89810.0,0.04581803]
[1763447861384,0.04259,89807.0,89806.0,0.02280838]
[1763447861581,0.04259,89807.0,89806.0,0.04389838]
[1763447861981,0.001,89811.0,89810.0,0.04581803]
[1763447862386,9.559e-05,89820.0,89817.0,0.04362]
[1763447862687,0.02130702,89818.0,89817.0,0.40442]
[1763447863183,0.04275702,89818.0,89817.0,0.40442]
[1763447863376,0.0737359,89818.0,89817.0,0.40442]
[1763447863580,0.07355054,89818.0,89817.0,0.04362]
[1763447863772,0.03096054,89818.0,89817.0,0.04362]
[1763447864785,0.03196054,89818.0,89817.0,0.04362]
[1763447864987,0.07455054,89818.0,89817.0,0.04362]
[1763447865374,0.03196054,89818.0,89817.0,0.04362]
[1763447867282,0.00336189,89818.0,89817.0,0.04362]
[1763447867475,0.00336189,89818.0,89816.0,0.3608]
[1763447867476,0.02114,89842.0,89841.0,0.04362]
[1763447867677,0.04259,89842.0,89841.0,0.04362]
[1763447867871,0.04259,89842.0,89840.0,0.00219803]
[1763447868077,0.04259,89841.0,89840.0,0.00219803]
[1763447868272,0.04259,89841.0,89840.0,0.02472803]
[1763447868580,0.04259,89841.0,89840.0,0.00219803]
[1763447868783,0.04259,89833.0,89832.0,0.00016702]
[1763447869086,0.40339,89833.0,89832.0,0.00016702]
[1763447869487,0.04259,89817.0,89816.0,0.04362]
[1763447869880,0.04259,89817.0,89813.0,0.26956]
[1763447869881,0.40339,89823.0,89822.0,0.04362]
[1763447870282,0.04259,89821.0,89820.0,0.00219803]
[1763447870685,0.04259,89821.0,89820.0,0.04581803]
[1763447871283,0.04359,89821.0,89820.0,0.04581803]
[1763447872186,0.04359,89821.0,89820.0,0.05933803]
[1763447872386,0.04359,89821.0,89820.0,0.04581803]
[1763447873984,0.04359,89821.0,89820.0,0.05933803]
[1763447874191,0.04359,89821.0,89820.0,0.04581803]
[1763447875186,0.04359,89821.0,89820.0,0.02472803]
[1763447875391,0.04359,89821.0,89820.0,0.00219803]
[1763447875793,0.04359,89821.0,89820.0,0.02472803]
[1763447875988,0.04359,89821.0,89820.0,0.04581803]
[1763447878795,0.04359,89821.0,89820.0,0.00219803]
[1763447878999,0.05801,89816.0,89815.0,0.3608]
[1763447879501,0.08749437,89816.0,89815.0,0.3608]
[1763447879696,0.08749437,89816.0,89815.0,0.40363]
[1763447879697,0.07378437,89816.0,89815.0,0.40363]
[1763447880001,0.07378437,89816.0,89815.0,0.04283]
[1763447880192,0.07478437,89816.0,89815.0,0.04283]
[1763447880499,0.08507437,89816.0,89815.0,0.02151]
[1763447880697,0.07478437,89816.0,89815.0,0.04283]
[1763447881189,0.08507437,89816.0,89815.0,0.04283]
[1763447882193,0.03048437,89816.0,89815.0,0.04283]
[1763447882398,0.03048437,89816.0,89815.0,0.31227]
[1763447882896,0.07478437,89816.0,89815.0,0.04283]
[1763447883095,0.0443,89813.0,89812.0,0.02167702]
[1763447883284,0.43458437,89813.0,89812.0,0.29111702]
[1763447883692,0.43458437,89813.0,89812.0,0.31243702]
[1763447884185,0.43558437,89813.0,89812.0,0.04299702]
[1763447884800,0.07478437,89813.0,89812.0,0.04299702]
[1763447884993,0.03025185,89813.0,89812.0,0.04299702]
[1763447885199,0.06011542,89829.0,89828.0,0.04283]
[1763447885200,0.04446702,89829.0,89828.0,0.04283]
[1763447886597,0.0443,89813.0,89812.0,0.04299702]
[1763447886792,0.0443,89820.0,89819.0,0.04283]
[1763447887600,0.05801,89820.0,89819.0,0.04283]
[1763447887802,0.0443,89820.0,89819.0,0.04283]
[1763447888501,0.05801,89820.0,89819.0,0.04283]
[1763447889198,0.0443,89818.0,89817.0,0.3608]
[1763447889396,0.01371,89820.0,89812.0,0.29115702]
[1763447889397,0.0443,89813.0,89812.0,0.29115702]
[1763447889595,0.0443,89813.0,89812.0,0.31247702]
[1763447889993,0.0443,89813.0,89812.0,0.00016702]
[1763447891304,0.0443,89813.0,89812.0,0.04299702]
[1763447892205,0.0453,89813.0,89812.0,0.04299702]
[1763447893497,0.0453,89813.0,89812.0,0.00016702]
[1763447895909,0.0443,89807.0,89806.0,0.00027838]
[1763447896096,0.4051,89807.0,89806.0,0.00027838]
[1763447897100,0.43388403,89807.0,89806.0,0.00027838]
[1763447897297,0.43388403,89807.0,89790.0,0.2112598]
[1763447897602,0.43388403,89807.0,89773.0,0.1115248]
[1763447897603,0.0443,89776.0,89775.0,0.04291823]
[1763447898498,0.0443,89776.0,89775.0,8.823e-05]
[1763447898893,0.0443,89776.0,89775.0,0.04391823]
[1763447899898,0.00016702,89784.0,89783.0,0.04299]
[1763447900304,0.02297702,89784.0,89783.0,0.04299]
[1763447900498,0.00016702,89784.0,89783.0,0.04299]
[1763447900705,0.40464,89808.0,89807.0,0.02183]
[1763447900897,0.04384,89808.0,89807.0,0.04299]
[1763447901504,0.04384,89802.0,89801.0,0.40379]
[1763447902098,0.04384,89802.0,89801.0,0.3608]
[1763447902400,0.07149147,89802.0,89801.0,0.19269772]
[1763447902600,0.47149147,89802.0,89801.0,0.15769772]
[1763447902804,0.53897147,89802.0,89793.0,0.00016702]
[1763447903007,0.13901148,89801.0,89793.0,0.00016702]
[1763447903209,0.02765724,89800.0,89793.0,0.00016702]
[1763447903504,0.02765724,89799.0,89793.0,0.00016702]
[1763447903806,0.29721724,89798.0,89793.0,0.00016702]
[1763447904013,0.02765724,89797.0,89793.0,0.00016702]
[1763447904212,0.02765724,89796.0,89793.0,0.00016702]
[1763447904411,0.02765724,89795.0,89793.0,0.00016702]
[1763447904608,0.02765724,89794.0,89793.0,0.00016702]
[1763447905304,0.13901725,89794.0,89780.0,0.01388]
[1763447905504,0.02765724,89793.0,89780.0,0.01607803]
[1763447905702,0.02765724,89792.0,89780.0,0.01607803]
[1763447905899,0.02765724,89791.0,89780.0,0.01607803]
[1763447906102,0.02765724,89790.0,89780.0,0.01607803]
[1763447906309,0.02765724,89789.0,89780.0,0.01607803]
[1763447906508,0.02765724,89788.0,89780.0,0.01607803]
[1763447906706,0.02765724,89787.0,89780.0,0.01607803]
[1763447907016,0.02765724,89786.0,89780.0,0.01607803]
[1763447907213,0.02765724,89785.0,89780.0,0.01607803]
[1763447907414,0.02765724,89784.0,89780.0,0.01607803]
[1763447910413,0.53901725,89784.0,89783.0,0.31478136]
[1763447910710,0.42765724,89784.0,89783.0,1e-08]
[1763447911101,0.69725724,89784.0,89783.0,1e-08]
[1763447911510,0.02765724,89784.0,89783.0,0.04309001]
[1763447912611,0.02765724,89784.0,89783.0,0.02164001]
[1763447913207,0.02765724,89784.0,89783.0,0.04309001]
[1763447913414,0.2696,89791.0,89783.0,0.04309001]
[1763447913613,0.02756299,89790.0,89783.0,0.04309001]
[1763447913810,0.02756299,89789.0,89783.0,0.04309001]
[1763447914014,0.02756299,89788.0,89787.0,0.02164]
[1763447914802,0.02756299,89788.0,89787.0,0.04309]
[1763447915215,0.26956,89802.0,89801.0,0.02164]
[1763447915418,0.02756465,89802.0,89801.0,0.02164]
[1763447916011,0.02756465,89802.0,89800.0,0.01494803]
[1763447916216,0.26956,89806.0,89800.0,0.01494803]
[1763447916217,0.02756465,89801.0,89800.0,0.01494803]
[1763447916412,0.02756465,89805.0,89800.0,0.01494803]
[1763447917008,0.001,89802.0,89800.0,0.01494803]
[1763447917209,0.02756465,89801.0,89800.0,0.01494803]
[1763447917914,0.02756465,89801.0,89800.0,0.01275]
[1763447918116,0.02756465,89801.0,89790.0,0.01275]
[1763447918311,0.32309091,89800.0,89790.0,0.01275]
[1763447918514,0.02756465,89799.0,89790.0,0.01494803]
[1763447918813,0.02756465,89799.0,89790.0,0.00219803]
[1763447919118,0.02756465,89799.0,89790.0,0.01494803]
[1763447919320,0.06741892,89799.0,89790.0,0.01494803]
[1763447919518,0.02756465,89798.0,89790.0,0.01494803]
[1763447919718,0.06741892,89798.0,89790.0,0.01494803]
[1763447919919,0.02756465,89797.0,89790.0,0.01494803]
[1763447920319,0.08741838,89802.0,89790.0,0.01494803]
[1763447920320,0.02756465,89796.0,89790.0,0.01494803]
[1763447920515,0.02756465,89795.0,89790.0,0.01494803]
[1763447920712,0.02756465,89794.0,89793.0,0.04309]
[1763447920917,0.02764765,89798.0,89797.0,0.02145]
[1763447921112,0.29720765,89798.0,89797.0,0.04309]
[1763447921314,0.02764765,89798.0,89797.0,0.04309]
[1763447926020,0.02764765,89798.0,89790.0,0.01275]
[1763447926226,0.02764765,89797.0,89796.0,0.02164]
[1763447926428,0.02764765,89797.0,89796.0,0.04309]
[1763447926718,0.06750192,89797.0,89790.0,0.01275]
[1763447926924,0.02764765,89796.0,89795.0,0.02164]
[1763447927323,0.06750192,89796.0,89795.0,0.02164]
[1763447927621,0.02764765,89796.0,89795.0,0.02164]
[1763447928018,0.02764765,89799.0,89795.0,0.02164]
[1763447928217,0.02764765,89798.0,89790.0,0.01494803]
[1763447928422,0.0396678,89794.0,89790.0,0.01494803]
[1763447928615,0.02764765,89793.0,89790.0,0.01494803]
[1763447928813,0.02764765,89792.0,89791.0,0.02164]
[1763447929124,0.0599484,89796.0,89791.0,0.02164]
[1763447929125,0.06732492,89795.0,89791.0,0.04309]
[1763447929325,0.02764765,89794.0,89793.0,0.02164]
[1763447929623,0.03967727,89795.0,89793.0,0.02164]
[1763447929921,0.02764765,89794.0,89793.0,0.02164]
[1763447930226,0.03967727,89795.0,89793.0,0.04309]
[1763447930521,0.06732492,89794.0,89790.0,0.01494803]
[1763447930723,0.06732492,89793.0,89790.0,0.01275]
[1763447930927,0.06732492,89792.0,89783.0,1e-08]
[1763447931223,0.03967727,89784.0,89783.0,1e-08]
[1763447931424,0.29708765,89784.0,89783.0,1e-08]
[1763447931624,0.40844766,89784.0,89770.0,0.01275]
[1763447931814,0.03969118,89776.0,89770.0,0.01275]
[1763447932016,0.06733883,89776.0,89770.0,0.01275]
[1763447932222,0.06733883,89776.0,89760.0,0.01275]
[1763447932223,0.11136001,89775.0,89760.0,0.01275]
[1763447932421,0.03969524,89767.0,89760.0,0.01275]
[1763447932621,0.33682289,89766.0,89760.0,0.01275]
[1763447932825,0.02764765,89765.0,89760.0,0.01275]
[1763447933127,0.02764765,89765.0,89740.0,0.01275]
[1763447933128,0.03969524,89762.0,89740.0,0.01275]
[1763447933325,0.03969524,89758.0,89740.0,0.01275]
[1763447933524,0.03969524,89756.0,89726.0,0.00027863]
[1763447933825,0.29552626,89736.0,89726.0,0.00027863]
[1763447934128,1.79720765,89735.0,89726.0,1e-08]
[1763447934324,0.02764765,89734.0,89726.0,1e-08]
[1763447934719,0.18671317,89733.0,89697.0,0.00012651]
[1763447934926,0.04969523,89730.0,89700.0,0.01494803]
[1763447935222,0.00016712,89724.0,89700.0,0.01494803]
[1763447935523,0.29804765,89723.0,89712.0,0.01275]
[1763447935725,0.02764765,89722.0,89712.0,0.01275]
[1763447935928,0.29552626,89722.0,89712.0,0.01275]
[1763447936332,0.27048,89721.0,89712.0,0.01275]
[1763447938936,0.00016712,89724.0,89723.0,0.04512]
[1763447939930,0.00016712,89724.0,89723.0,0.02297]
[1763447940430,0.00016712,89724.0,89723.0,0.04512]
[1763447941022,0.00016712,89724.0,89723.0,0.02297]
[1763447941222,0.00016712,89724.0,89712.0,0.01275]
[1763447942532,0.00016712,89724.0,89723.0,0.04512]
[1763447943233,0.08983518,89765.0,89760.0,0.03591]
[1763447943436,0.08983518,89765.0,89748.0,0.01294]
[1763447943437,0.27056,89764.0,89748.0,0.01294]
[1763447943625,0.16812977,89757.0,89750.0,0.00219803]
[1763447943827,0.29552626,89760.0,89750.0,0.00219803]
[1763447944030,1.5,89763.0,89750.0,0.00219803]
[1763447944239,0.1661514,89757.0,89748.0,0.01310712]
[1763447944533,0.29552626,89760.0,89748.0,0.01310712]
[1763447944927,0.16665786,89758.0,89748.0,0.01310712]
[1763447945138,0.03969524,89754.0,89748.0,0.01310712]
[1763447945333,0.03969524,89757.0,89748.0,0.01310712]
[1763447945639,0.16665786,89758.0,89748.0,0.01310712]
[1763447945935,0.03969524,89759.0,89748.0,0.01310712]
[1763447946133,0.15109525,89758.0,89748.0,0.00016712]
[1763447946325,0.03969524,89754.0,89748.0,0.00016712]
[1763447946526,0.03969524,89752.0,89736.0,0.01294]
[1763447946726,1.5,89763.0,89736.0,0.01294]
[1763447946727,0.3352215,89750.0,89736.0,0.01294]
[1763447946934,0.3352215,89750.0,89700.0,0.01294]
[1763447946935,0.0203,89749.0,89700.0,0.01294]
[1763447947126,0.29552626,89714.0,89687.0,0.01294]
[1763447947328,0.05954287,89740.0,89687.0,0.01294]
[1763447947329,0.0019,89713.0,89687.0,0.01294]
[1763447947629,0.00016722,89709.0,89704.0,0.04512]
[1763447947829,0.02757847,89708.0,89704.0,0.04512]
[1763447948042,0.02757847,89708.0,89706.0,0.02297]
[1763447948043,0.02757847,89707.0,89706.0,0.02297]
[1763447948231,0.02769131,89707.0,89706.0,0.02297]
[1763447948630,0.02769131,89707.0,89706.0,0.04512]
[1763447948838,6e-08,89709.0,89708.0,0.04512]
[1763447949138,0.07946901,89753.0,89700.0,0.01294]
[1763447949139,0.08748,89740.0,89739.0,0.02297]
[1763447949534,0.20579656,89752.0,89747.0,0.02297]
[1763447949733,0.20579656,89752.0,89745.0,0.01294]
[1763447949734,0.27144,89751.0,89750.0,0.00219803]
[1763447949930,0.27144,89751.0,89745.0,0.01294]
[1763447949931,0.27144,89751.0,89745.0,0.01194]
[1763447951439,0.35943345,89751.0,89745.0,0.01194]
[1763447952031,0.16658509,89750.0,89742.0,0.00016713]
[1763447952336,0.03936573,89747.0,89730.0,0.01294]
[1763447952524,0.29552626,89740.0,89730.0,0.01294]
[1763447953034,0.03936573,89743.0,89730.0,0.01513803]
[1763447953335,0.29552626,89740.0,89730.0,0.01513803]
[1763447954434,0.03936573,89741.0,89730.0,0.01513803]
[1763447955739,0.05903445,89746.0,89730.0,0.01294]
[1763447955740,0.33489199,89740.0,89730.0,0.01294]
[1763447955937,0.03936573,89738.0,89730.0,0.01294]
[1763447956134,0.27132,89737.0,89730.0,0.01294]
[1763447956334,0.31068573,89737.0,89730.0,0.01294]
[1763447956643,0.31068573,89737.0,89730.0,0.01513803]
[1763447957235,0.05903445,89742.0,89735.0,0.04512]
[1763447957236,0.03936573,89736.0,89735.0,0.04512]
[1763447957442,0.07946901,89753.0,89747.0,0.04512]